[Event "Titled Tuesday Blitz July 18 Early 2023"]
[White "Akhayan, Ruben"]
[Black "Baches Garcia, Guillermo"]
[WhiteFideId "204439"]
[BlackFideId "2209764"]
[WhiteElo "2275"]
[BlackElo "2449"]
[Result "1-0"]
[Round "4"]
[TimeControl "180+2"]
[Date "2023.07.18"]
[WhiteClock "0:00:34"]
[BlackClock "0:00:00"]
[Board "163"]

1. e4 {[%clk 0:03:00]}  d5 {[%clk 0:03:00]} 2. exd5 {[%clk 0:03:00]}  Qxd5 {[%clk 0:03:00]} 3. Nc3 {[%clk 0:03:00]}  Qa5 {[%clk 0:03:01]} 4. Nf3 {[%clk 0:02:51]}  Nf6 {[%clk 0:03:00]} 5. Bc4 {[%clk 0:02:48]}  Bf5 {[%clk 0:02:52]} 6. O-O {[%clk 0:02:45]}  e6 {[%clk 0:02:52]} 7. d3 {[%clk 0:02:44]}  c6 {[%clk 0:02:52]} 8. Re1 {[%clk 0:02:35]}  Be7 {[%clk 0:02:50]} 9. Bd2 {[%clk 0:02:31]}  Qc7 {[%clk 0:02:48]} 10. h3 {[%clk 0:02:29]}  h6 {[%clk 0:02:46]} 11. Nd4 {[%clk 0:02:22]}  Bg6 {[%clk 0:02:41]} 12. Bxe6 {[%clk 0:02:19]}  fxe6 {[%clk 0:02:10]} 13. Nxe6 {[%clk 0:02:19]}  Qd7 {[%clk 0:02:02]} 14. Nxg7+ {[%clk 0:02:15]}  Kf7 {[%clk 0:02:01]} 15. Ne6 {[%clk 0:02:14]}  Na6 {[%clk 0:01:50]} 16. Nf4 {[%clk 0:02:12]}  Rae8 {[%clk 0:01:44]} 17. Nxg6 {[%clk 0:02:10]}  Kxg6 {[%clk 0:01:45]} 18. Ne4 {[%clk 0:02:08]}  Nc5 {[%clk 0:01:38]} 19. Nxf6 {[%clk 0:02:00]}  Bxf6 {[%clk 0:01:38]} 20. Rb1 {[%clk 0:01:24]}  Rxe1+ {[%clk 0:01:34]} 21. Bxe1 {[%clk 0:01:23]}  Qe6 {[%clk 0:01:24]} 22. Bb4 {[%clk 0:01:20]}  Nd7 {[%clk 0:01:20]} 23. d4 {[%clk 0:01:16]}  Re8 {[%clk 0:01:18]} 24. Qf3 {[%clk 0:00:57]}  Bxd4 {[%clk 0:01:05]} 25. Re1 {[%clk 0:00:55]}  Be5 {[%clk 0:00:50]} 26. Bc3 {[%clk 0:00:49]}  Qf5 {[%clk 0:00:42]} 27. Qd1 {[%clk 0:00:41]}  Rf8 {[%clk 0:00:35]} 28. Bxe5 {[%clk 0:00:37]}  Nxe5 {[%clk 0:00:35]} 29. Re2 {[%clk 0:00:36]}  Rf6 {[%clk 0:00:34]} 30. Qd8 {[%clk 0:00:33]}  Nf7 {[%clk 0:00:32]} 31. Qg8+ {[%clk 0:00:33]}  Kh5 {[%clk 0:00:00]} 32. g4+ {[%clk 0:00:34]} 1-0


[Site "https://www.chess.com"]

[Event "Titled Tuesday Blitz July 18 Early 2023"]
[White "Gatterer, Florian"]
[Black "Thiel, Thomas"]
[WhiteFideId "811688"]
[BlackFideId "4615964"]
[WhiteElo "2437"]
[BlackElo "2237"]
[Result "1/2-1/2"]
[Round "4"]
[TimeControl "180+2"]
[Date "2023.07.18"]
[WhiteClock "0:02:22"]
[BlackClock "0:02:37"]
[Board "170"]

1. Nf3 {[%clk 0:02:59]}  Nf6 {[%clk 0:02:55]} 2. g3 {[%clk 0:02:58]}  g6 {[%clk 0:02:55]} 3. Bg2 {[%clk 0:02:58]}  Bg7 {[%clk 0:02:54]} 4. d4 {[%clk 0:02:55]}  d5 {[%clk 0:02:51]} 5. O-O {[%clk 0:02:54]}  O-O {[%clk 0:02:50]} 6. c4 {[%clk 0:02:54]}  dxc4 {[%clk 0:02:43]} 7. Na3 {[%clk 0:02:53]}  Nc6 {[%clk 0:02:43]} 8. Nxc4 {[%clk 0:02:40]}  Be6 {[%clk 0:02:42]} 9. Nce5 {[%clk 0:02:39]}  Bd5 {[%clk 0:02:42]} 10. Nxc6 {[%clk 0:02:31]}  Bxc6 {[%clk 0:02:37]} 11. Bf4 {[%clk 0:02:22]} 1/2-1/2


[Site "https://www.chess.com"]

[Event "Titled Tuesday Blitz July 18 Early 2023"]
[White "Vaglio Munoz, Jaime"]
[Black "Rosh Jain"]
[WhiteFideId "6500145"]
[BlackFideId "25789465"]
[WhiteElo "2236"]
[BlackElo "2431"]
[Result "1-0"]
[Round "4"]
[TimeControl "180+2"]
[Date "2023.07.18"]
[WhiteClock "0:01:37"]
[BlackClock "0:00:42"]
[Board "171"]

1. Nf3 {[%clk 0:03:00]}  d5 {[%clk 0:03:00]} 2. c4 {[%clk 0:03:01]}  e6 {[%clk 0:03:00]} 3. b3 {[%clk 0:03:00]}  Nf6 {[%clk 0:03:00]} 4. Bb2 {[%clk 0:03:00]}  c5 {[%clk 0:03:01]} 5. cxd5 {[%clk 0:02:59]}  exd5 {[%clk 0:03:01]} 6. g3 {[%clk 0:03:00]}  Nc6 {[%clk 0:03:00]} 7. Bg2 {[%clk 0:03:00]}  Be6 {[%clk 0:03:01]} 8. d4 {[%clk 0:02:59]}  cxd4 {[%clk 0:02:59]} 9. O-O {[%clk 0:02:59]}  Bc5 {[%clk 0:02:56]} 10. Nxd4 {[%clk 0:02:59]}  Nxd4 {[%clk 0:02:56]} 11. Bxd4 {[%clk 0:02:58]}  Bxd4 {[%clk 0:02:57]} 12. Qxd4 {[%clk 0:02:58]}  O-O {[%clk 0:02:58]} 13. Nc3 {[%clk 0:02:58]}  Rc8 {[%clk 0:02:58]} 14. Rfd1 {[%clk 0:02:57]}  Qe7 {[%clk 0:02:56]} 15. Nxd5 {[%clk 0:02:48]}  Bxd5 {[%clk 0:02:55]} 16. Bxd5 {[%clk 0:02:48]}  Qxe2 {[%clk 0:02:50]} 17. Bxb7 {[%clk 0:02:46]}  Rc2 {[%clk 0:02:46]} 18. Qxa7 {[%clk 0:02:36]}  Ng4 {[%clk 0:02:39]} 19. Rf1 {[%clk 0:02:22]}  f5 {[%clk 0:02:31]} 20. Bd5+ {[%clk 0:02:20]}  Kh8 {[%clk 0:02:31]} 21. Rae1 {[%clk 0:02:17]}  Qb5 {[%clk 0:02:17]} 22. Qe7 {[%clk 0:02:15]}  Rfc8 {[%clk 0:02:07]} 23. Bc4 {[%clk 0:02:13]}  Qc6 {[%clk 0:02:03]} 24. Re6 {[%clk 0:02:05]}  Qa8 {[%clk 0:01:51]} 25. Rfe1 {[%clk 0:01:58]}  h6 {[%clk 0:01:40]} 26. Qf7 {[%clk 0:01:55]}  Nf6 {[%clk 0:00:56]} 27. Rxf6 {[%clk 0:01:37]}  Qf3 {[%clk 0:00:42]} 1-0


[Site "https://www.chess.com"]

[Event "Titled Tuesday Blitz July 18 Early 2023"]
[White "Devaev, Alexander"]
[Black "Hernandez Bermudez, Ulises Eduardo"]
[WhiteFideId "4169395"]
[BlackFideId "3902510"]
[WhiteElo "2429"]
[BlackElo "2224"]
[Result "1-0"]
[Round "4"]
[TimeControl "180+2"]
[Date "2023.07.18"]
[WhiteClock "0:00:05"]
[BlackClock "0:00:04"]
[Board "172"]

1. d4 {[%clk 0:03:00]}  d5 {[%clk 0:02:59]} 2. Nf3 {[%clk 0:03:00]}  Nf6 {[%clk 0:02:59]} 3. c4 {[%clk 0:02:59]}  c6 {[%clk 0:02:59]} 4. Nc3 {[%clk 0:02:59]}  e6 {[%clk 0:02:58]} 5. e3 {[%clk 0:02:58]}  Nbd7 {[%clk 0:02:57]} 6. Qc2 {[%clk 0:02:59]}  Bd6 {[%clk 0:02:57]} 7. b3 {[%clk 0:02:58]}  O-O {[%clk 0:02:53]} 8. Bb2 {[%clk 0:02:59]}  dxc4 {[%clk 0:02:39]} 9. Bxc4 {[%clk 0:02:48]}  b5 {[%clk 0:02:39]} 10. Bd3 {[%clk 0:02:48]}  e5 {[%clk 0:02:36]} 11. O-O {[%clk 0:02:45]}  Bb7 {[%clk 0:02:31]} 12. Ne4 {[%clk 0:02:41]}  Nxe4 {[%clk 0:02:21]} 13. Bxe4 {[%clk 0:02:40]}  exd4 {[%clk 0:02:15]} 14. exd4 {[%clk 0:01:55]}  Nf6 {[%clk 0:02:09]} 15. Bd3 {[%clk 0:01:46]}  Rc8 {[%clk 0:02:06]} 16. Bf5 {[%clk 0:01:43]}  Rc7 {[%clk 0:01:52]} 17. Rac1 {[%clk 0:01:41]}  c5 {[%clk 0:01:46]} 18. dxc5 {[%clk 0:01:40]}  Rxc5 {[%clk 0:01:45]} 19. Qb1 {[%clk 0:01:40]}  Bxf3 {[%clk 0:01:43]} 20. gxf3 {[%clk 0:01:33]}  Rxc1 {[%clk 0:01:23]} 21. Rxc1 {[%clk 0:01:31]}  Nh5 {[%clk 0:01:16]} 22. Qe4 {[%clk 0:00:48]}  Nf4 {[%clk 0:00:59]} 23. Kh1 {[%clk 0:00:19]}  Qh4 {[%clk 0:00:47]} 24. Rg1 {[%clk 0:00:19]}  f6 {[%clk 0:00:33]} 25. Bd4 {[%clk 0:00:14]}  Be5 {[%clk 0:00:19]} 26. Bxe5 {[%clk 0:00:13]}  fxe5 {[%clk 0:00:19]} 27. Qxe5 {[%clk 0:00:13]}  Nh5 {[%clk 0:00:16]} 28. Bg4 {[%clk 0:00:10]}  Nf6 {[%clk 0:00:15]} 29. Qe6+ {[%clk 0:00:10]}  Kh8 {[%clk 0:00:14]} 30. Qe7 {[%clk 0:00:10]}  Rg8 {[%clk 0:00:14]} 31. Be6 {[%clk 0:00:10]}  Qxf2 {[%clk 0:00:13]} 32. Qb7 {[%clk 0:00:07]}  h6 {[%clk 0:00:03]} 33. Bxg8 {[%clk 0:00:07]}  Nxg8 {[%clk 0:00:03]} 34. Qe4 {[%clk 0:00:08]}  Nf6 {[%clk 0:00:03]} 35. Qf4 {[%clk 0:00:07]}  Qe2 {[%clk 0:00:03]} 36. Qg3 {[%clk 0:00:07]}  Nh5 {[%clk 0:00:03]} 37. Qg4 {[%clk 0:00:07]}  g6 {[%clk 0:00:02]} 38. Qg2 {[%clk 0:00:06]}  Qe3 {[%clk 0:00:02]} 39. Qg4 {[%clk 0:00:03]}  Nf4 {[%clk 0:00:01]} 40. Qc8+ {[%clk 0:00:03]}  Kg7 {[%clk 0:00:02]} 41. Qd7+ {[%clk 0:00:03]}  Kf6 {[%clk 0:00:02]} 42. Qd6+ {[%clk 0:00:03]}  Ne6 {[%clk 0:00:03]} 43. Qg3 {[%clk 0:00:03]}  g5 {[%clk 0:00:03]} 44. Re1 {[%clk 0:00:04]}  Qd2 {[%clk 0:00:03]} 45. Qe5+ {[%clk 0:00:04]}  Kg6 {[%clk 0:00:03]} 46. Qxe6+ {[%clk 0:00:05]}  Kh5 {[%clk 0:00:03]} 47. Qg4+ {[%clk 0:00:05]}  Kg6 {[%clk 0:00:03]} 48. Re6+ {[%clk 0:00:05]}  Kg7 {[%clk 0:00:04]} 49. Re7+ {[%clk 0:00:05]}  Kf6 {[%clk 0:00:04]} 50. Qe6# {[%clk 0:00:05]} 1-0


[Site "https://www.chess.com"]

[Event "Titled Tuesday Blitz July 18 Early 2023"]
[White "Todorovic, Bojan"]
[Black "Horokoskii"]
[WhiteFideId "917087"]
[WhiteElo "2424"]
[BlackElo "2128"]
[Result "1-0"]
[Round "4"]
[TimeControl "180+2"]
[Date "2023.07.18"]
[WhiteClock "0:02:33"]
[BlackClock "0:02:04"]
[Board "175"]

1. d4 {[%clk 0:02:59]}  Nf6 {[%clk 0:02:52]} 2. c4 {[%clk 0:02:57]}  c5 {[%clk 0:02:51]} 3. d5 {[%clk 0:02:57]}  e6 {[%clk 0:02:52]} 4. Nc3 {[%clk 0:02:56]}  exd5 {[%clk 0:02:52]} 5. cxd5 {[%clk 0:02:57]}  d6 {[%clk 0:02:53]} 6. Nf3 {[%clk 0:02:57]}  g6 {[%clk 0:02:53]} 7. Nd2 {[%clk 0:02:57]}  Bg7 {[%clk 0:02:52]} 8. Nc4 {[%clk 0:02:57]}  O-O {[%clk 0:02:51]} 9. Bf4 {[%clk 0:02:57]}  Ne8 {[%clk 0:02:48]} 10. Qd2 {[%clk 0:02:57]}  a6 {[%clk 0:02:43]} 11. a4 {[%clk 0:02:55]}  Qe7 {[%clk 0:02:28]} 12. Nb6 {[%clk 0:02:50]}  Qc7 {[%clk 0:02:13]} 13. Nxa8 {[%clk 0:02:44]}  Qd8 {[%clk 0:02:04]} 14. a5 {[%clk 0:02:33]} 1-0


[Site "https://www.chess.com"]

[Event "Titled Tuesday Blitz July 18 Early 2023"]
[White "Buchenau, Frank"]
[Black "LLariMarc"]
[WhiteFideId "4604350"]
[WhiteElo "2417"]
[BlackElo "2104"]
[Result "1-0"]
[Round "4"]
[TimeControl "180+2"]
[Date "2023.07.18"]
[WhiteClock "0:00:15"]
[BlackClock "0:00:17"]
[Board "177"]

1. e4 {[%clk 0:03:00]}  e6 {[%clk 0:02:56]} 2. d4 {[%clk 0:03:00]}  d5 {[%clk 0:02:57]} 3. Nc3 {[%clk 0:02:59]}  Nf6 {[%clk 0:02:57]} 4. e5 {[%clk 0:02:59]}  Nfd7 {[%clk 0:02:54]} 5. f4 {[%clk 0:02:59]}  c5 {[%clk 0:02:52]} 6. Nf3 {[%clk 0:02:59]}  Nc6 {[%clk 0:02:53]} 7. Be3 {[%clk 0:02:59]}  a6 {[%clk 0:02:52]} 8. Ne2 {[%clk 0:02:56]}  b5 {[%clk 0:02:50]} 9. c3 {[%clk 0:02:48]}  b4 {[%clk 0:02:48]} 10. f5 {[%clk 0:02:43]}  exf5 {[%clk 0:02:47]} 11. Nf4 {[%clk 0:02:43]}  bxc3 {[%clk 0:02:47]} 12. bxc3 {[%clk 0:02:41]}  cxd4 {[%clk 0:02:47]} 13. cxd4 {[%clk 0:02:40]}  Nb6 {[%clk 0:02:48]} 14. Rc1 {[%clk 0:02:32]}  Nc4 {[%clk 0:02:43]} 15. Bxc4 {[%clk 0:02:26]}  dxc4 {[%clk 0:02:43]} 16. Rxc4 {[%clk 0:02:26]}  Na5 {[%clk 0:02:33]} 17. Rc1 {[%clk 0:02:17]}  Bb4+ {[%clk 0:02:32]} 18. Kf2 {[%clk 0:02:17]}  O-O {[%clk 0:02:31]} 19. Qa4 {[%clk 0:02:12]}  g5 {[%clk 0:02:16]} 20. Qxb4 {[%clk 0:02:06]}  gxf4 {[%clk 0:02:16]} 21. Bxf4 {[%clk 0:02:05]}  Nb7 {[%clk 0:02:08]} 22. Bg5 {[%clk 0:01:57]}  Qd5 {[%clk 0:02:08]} 23. Rc7 {[%clk 0:01:49]}  Qxa2+ {[%clk 0:02:06]} 24. Kg3 {[%clk 0:01:48]}  Nd8 {[%clk 0:02:01]} 25. Qe7 {[%clk 0:01:16]}  Ne6 {[%clk 0:01:52]} 26. Bh6 {[%clk 0:01:03]}  f4+ {[%clk 0:01:52]} 27. Kh4 {[%clk 0:00:59]}  Qf2+ {[%clk 0:01:49]} 28. Kh5 {[%clk 0:00:49]}  Qxg2 {[%clk 0:01:16]} 29. Rg1 {[%clk 0:00:48]}  Ng7+ {[%clk 0:01:13]} 30. Bxg7 {[%clk 0:00:47]}  Qxf3+ {[%clk 0:01:11]} 31. Kg5 {[%clk 0:00:38]}  Bh3 {[%clk 0:00:24]} 32. Kf6 {[%clk 0:00:28]}  Bg2 {[%clk 0:00:20]} 33. Rc2 {[%clk 0:00:20]}  Qh5 {[%clk 0:00:17]} 34. Rcxg2 {[%clk 0:00:16]}  Qh4+ {[%clk 0:00:17]} 35. Kf5 {[%clk 0:00:15]}  Qxe7 {[%clk 0:00:17]} 36. Bf6# {[%clk 0:00:15]} 1-0


[Site "https://www.chess.com"]

[Event "Titled Tuesday Blitz July 18 Early 2023"]
[White "Skiadopoulos, Nikolaos"]
[Black "Silva Lucena, Cristian"]
[WhiteFideId "4200772"]
[BlackFideId "2232588"]
[WhiteElo "1905"]
[BlackElo "2403"]
[Result "0-1"]
[Round "4"]
[TimeControl "180+2"]
[Date "2023.07.18"]
[WhiteClock "0:00:08"]
[BlackClock "0:02:13"]
[Board "184"]

1. e4 {[%clk 0:03:00]}  c5 {[%clk 0:02:59]} 2. b4 {[%clk 0:02:59]}  cxb4 {[%clk 0:02:59]} 3. a3 {[%clk 0:02:59]}  d5 {[%clk 0:02:56]} 4. e5 {[%clk 0:02:52]}  Nc6 {[%clk 0:02:54]} 5. d4 {[%clk 0:02:47]}  Bf5 {[%clk 0:02:53]} 6. Bb5 {[%clk 0:02:31]}  Qb6 {[%clk 0:02:52]} 7. Bxc6+ {[%clk 0:02:30]}  bxc6 {[%clk 0:02:51]} 8. axb4 {[%clk 0:02:25]}  Qxb4+ {[%clk 0:02:52]} 9. Bd2 {[%clk 0:02:25]}  Qxd4 {[%clk 0:02:49]} 10. c3 {[%clk 0:02:06]}  Qxe5+ {[%clk 0:02:46]} 11. Ne2 {[%clk 0:02:05]}  Bd3 {[%clk 0:02:45]} 12. Be3 {[%clk 0:01:47]}  Bxe2 {[%clk 0:02:44]} 13. Qxe2 {[%clk 0:01:45]}  Nf6 {[%clk 0:02:45]} 14. O-O {[%clk 0:01:28]}  e6 {[%clk 0:02:43]} 15. Qa6 {[%clk 0:01:24]}  Qc7 {[%clk 0:02:42]} 16. Bf4 {[%clk 0:01:11]}  Bd6 {[%clk 0:02:34]} 17. Bxd6 {[%clk 0:01:10]}  Qxd6 {[%clk 0:02:33]} 18. Na3 {[%clk 0:00:57]}  O-O {[%clk 0:02:32]} 19. Nb5 {[%clk 0:00:55]}  Qc5 {[%clk 0:02:30]} 20. Nxa7 {[%clk 0:00:55]}  Ne4 {[%clk 0:02:27]} 21. Qxc6 {[%clk 0:00:49]}  Qxc6 {[%clk 0:02:24]} 22. Nxc6 {[%clk 0:00:48]}  Rxa1 {[%clk 0:02:24]} 23. Rxa1 {[%clk 0:00:46]}  Nxc3 {[%clk 0:02:25]} 24. f3 {[%clk 0:00:35]}  g6 {[%clk 0:02:23]} 25. h4 {[%clk 0:00:23]}  Kg7 {[%clk 0:02:22]} 26. h5 {[%clk 0:00:22]}  Rc8 {[%clk 0:02:17]} 27. Ne5 {[%clk 0:00:18]}  Ne2+ {[%clk 0:02:14]} 28. Kf2 {[%clk 0:00:18]}  Nf4 {[%clk 0:02:14]} 29. g3 {[%clk 0:00:08]}  Nxh5 {[%clk 0:02:13]} 0-1


[Site "https://www.chess.com"]

[Event "Titled Tuesday Blitz July 18 Early 2023"]
[White "Boder, Jan"]
[Black "Bernat, David"]
[WhiteFideId "16243226"]
[BlackFideId "2099225"]
[WhiteElo "2270"]
[BlackElo "2391"]
[Result "1-0"]
[Round "4"]
[TimeControl "180+2"]
[Date "2023.07.18"]
[WhiteClock "0:00:23"]
[BlackClock "0:00:08"]
[Board "188"]

1. d4 {[%clk 0:02:53]}  d5 {[%clk 0:02:59]} 2. Nf3 {[%clk 0:02:35]}  Nf6 {[%clk 0:02:57]} 3. c4 {[%clk 0:02:04]}  c6 {[%clk 0:02:54]} 4. Nc3 {[%clk 0:02:00]}  a6 {[%clk 0:02:54]} 5. g3 {[%clk 0:02:01]}  dxc4 {[%clk 0:02:53]} 6. e4 {[%clk 0:02:01]}  b5 {[%clk 0:02:51]} 7. e5 {[%clk 0:02:01]}  Nd5 {[%clk 0:02:51]} 8. Ne4 {[%clk 0:02:01]}  Bf5 {[%clk 0:02:46]} 9. Nc5 {[%clk 0:02:00]}  e6 {[%clk 0:02:45]} 10. Bg2 {[%clk 0:02:00]}  Bxc5 {[%clk 0:02:42]} 11. dxc5 {[%clk 0:02:00]}  Nd7 {[%clk 0:02:40]} 12. O-O {[%clk 0:02:00]}  Nxc5 {[%clk 0:02:40]} 13. Nd4 {[%clk 0:01:57]}  Bd3 {[%clk 0:02:29]} 14. Qg4 {[%clk 0:01:12]}  Qc7 {[%clk 0:00:54]} 15. Qxg7 {[%clk 0:01:03]}  O-O-O {[%clk 0:00:54]} 16. Re1 {[%clk 0:00:41]}  h5 {[%clk 0:00:52]} 17. Qg5 {[%clk 0:00:37]}  Nb4 {[%clk 0:00:33]} 18. a3 {[%clk 0:00:33]}  Nc2 {[%clk 0:00:18]} 19. Nxc2 {[%clk 0:00:33]}  Bxc2 {[%clk 0:00:19]} 20. Be3 {[%clk 0:00:31]}  Nb3 {[%clk 0:00:17]} 21. Rac1 {[%clk 0:00:29]}  Nxc1 {[%clk 0:00:16]} 22. Rxc1 {[%clk 0:00:30]}  Bd3 {[%clk 0:00:14]} 23. Qf6 {[%clk 0:00:25]}  h4 {[%clk 0:00:13]} 24. Qf3 {[%clk 0:00:25]}  hxg3 {[%clk 0:00:13]} 25. hxg3 {[%clk 0:00:26]}  Rhg8 {[%clk 0:00:09]} 26. Bc5 {[%clk 0:00:25]}  Rd5 {[%clk 0:00:08]} 27. Bd6 {[%clk 0:00:25]}  Rxd6 {[%clk 0:00:08]} 28. exd6 {[%clk 0:00:26]}  Qxd6 {[%clk 0:00:08]} 29. b3 {[%clk 0:00:23]}  cxb3 {[%clk 0:00:07]} 30. Rxc6+ {[%clk 0:00:23]}  Kd7 {[%clk 0:00:08]} 31. Rxd6+ {[%clk 0:00:23]}  Kxd6 {[%clk 0:00:08]} 32. Qxd3+ {[%clk 0:00:22]}  Ke7 {[%clk 0:00:08]} 33. Qxb3 {[%clk 0:00:23]} 1-0


[Site "https://www.chess.com"]

[Event "Titled Tuesday Blitz July 18 Early 2023"]
[White "Merino Garcia, Rafael II"]
[Black "La Villa Rivas, Marlon Javier"]
[WhiteFideId "2209128"]
[BlackFideId "3519546"]
[WhiteElo "2390"]
[BlackElo "2230"]
[Result "0-1"]
[Round "4"]
[TimeControl "180+2"]
[Date "2023.07.18"]
[WhiteClock "0:01:05"]
[BlackClock "0:01:35"]
[Board "189"]

1. d4 {[%clk 0:02:57]}  Nf6 {[%clk 0:02:59]} 2. Nf3 {[%clk 0:02:57]}  c5 {[%clk 0:02:58]} 3. d5 {[%clk 0:02:57]}  e6 {[%clk 0:02:54]} 4. Nc3 {[%clk 0:02:57]}  exd5 {[%clk 0:02:42]} 5. Nxd5 {[%clk 0:02:54]}  Nxd5 {[%clk 0:02:40]} 6. Qxd5 {[%clk 0:02:54]}  Be7 {[%clk 0:02:40]} 7. Bf4 {[%clk 0:02:50]}  O-O {[%clk 0:02:39]} 8. O-O-O {[%clk 0:02:51]}  Nc6 {[%clk 0:02:14]} 9. Kb1 {[%clk 0:02:43]}  Qa5 {[%clk 0:02:05]} 10. a3 {[%clk 0:02:37]}  b5 {[%clk 0:02:05]} 11. Ne5 {[%clk 0:02:25]}  Nxe5 {[%clk 0:01:45]} 12. Qxa8 {[%clk 0:01:56]}  Nc6 {[%clk 0:01:45]} 13. Rxd7 {[%clk 0:01:13]}  Bxd7 {[%clk 0:01:44]} 14. Qb7 {[%clk 0:01:13]}  Qe1+ {[%clk 0:01:36]} 15. Ka2 {[%clk 0:01:13]}  Be6+ {[%clk 0:01:36]} 16. b3 {[%clk 0:01:05]}  Bf6 {[%clk 0:01:35]} 0-1


[Site "https://www.chess.com"]

[Event "Titled Tuesday Blitz July 18 Early 2023"]
[White "Larina, Maria"]
[Black "Slovineanu, Viacheslav"]
[WhiteFideId "24113182"]
[BlackFideId "13900510"]
[WhiteElo "2199"]
[BlackElo "2369"]
[Result "0-1"]
[Round "4"]
[TimeControl "180+2"]
[Date "2023.07.18"]
[WhiteClock "0:00:29"]
[BlackClock "0:00:41"]
[Board "191"]

1. e4 {[%clk 0:03:00]}  c6 {[%clk 0:02:57]} 2. d4 {[%clk 0:03:00]}  d5 {[%clk 0:02:57]} 3. f3 {[%clk 0:03:01]}  dxe4 {[%clk 0:02:56]} 4. fxe4 {[%clk 0:03:02]}  e5 {[%clk 0:02:57]} 5. Nf3 {[%clk 0:03:02]}  Be6 {[%clk 0:02:57]} 6. c3 {[%clk 0:03:00]}  Nd7 {[%clk 0:02:57]} 7. Be2 {[%clk 0:02:51]}  Bd6 {[%clk 0:02:42]} 8. O-O {[%clk 0:02:50]}  Ngf6 {[%clk 0:02:42]} 9. Ng5 {[%clk 0:02:49]}  O-O {[%clk 0:02:41]} 10. Qe1 {[%clk 0:02:38]}  h6 {[%clk 0:02:34]} 11. Nxe6 {[%clk 0:02:37]}  fxe6 {[%clk 0:02:34]} 12. Qh4 {[%clk 0:02:33]}  Qe7 {[%clk 0:02:03]} 13. Be3 {[%clk 0:02:24]}  exd4 {[%clk 0:01:58]} 14. cxd4 {[%clk 0:02:22]}  e5 {[%clk 0:01:58]} 15. Nc3 {[%clk 0:02:10]}  exd4 {[%clk 0:01:55]} 16. Bxd4 {[%clk 0:02:11]}  Bc5 {[%clk 0:01:55]} 17. Bc4+ {[%clk 0:02:08]}  Kh7 {[%clk 0:01:51]} 18. Ne2 {[%clk 0:01:26]}  Bxd4+ {[%clk 0:01:33]} 19. Nxd4 {[%clk 0:01:26]}  Qc5 {[%clk 0:01:33]} 20. e5 {[%clk 0:01:22]}  Nxe5 {[%clk 0:01:33]} 21. Bb3 {[%clk 0:01:01]}  Nfg4 {[%clk 0:01:18]} 22. Rad1 {[%clk 0:00:55]}  Rxf1+ {[%clk 0:01:07]} 23. Kxf1 {[%clk 0:00:56]}  Ne3+ {[%clk 0:01:06]} 24. Ke2 {[%clk 0:00:52]}  Nxd1 {[%clk 0:01:06]} 25. Bxd1 {[%clk 0:00:45]}  Qc4+ {[%clk 0:00:49]} 26. Kf2 {[%clk 0:00:33]}  Rf8+ {[%clk 0:00:45]} 27. Nf3 {[%clk 0:00:29]}  Qxh4+ {[%clk 0:00:41]} 0-1


[Site "https://www.chess.com"]

[Event "Titled Tuesday Blitz July 18 Early 2023"]
[White "TomLiu777"]
[Black "UgarteCesar"]
[WhiteElo "2344"]
[BlackElo "2171"]
[Result "0-1"]
[Round "4"]
[TimeControl "180+2"]
[Date "2023.07.18"]
[WhiteClock "0:00:00"]
[BlackClock "0:00:22"]
[Board "192"]

1. c4 {[%clk 0:02:57]}  e6 {[%clk 0:02:59]} 2. Nc3 {[%clk 0:02:58]}  d5 {[%clk 0:02:59]} 3. d4 {[%clk 0:02:54]}  h6 {[%clk 0:02:58]} 4. cxd5 {[%clk 0:02:44]}  exd5 {[%clk 0:02:58]} 5. Nf3 {[%clk 0:02:43]}  Nf6 {[%clk 0:02:57]} 6. g3 {[%clk 0:02:41]}  Bf5 {[%clk 0:02:54]} 7. Bg2 {[%clk 0:02:37]}  Nbd7 {[%clk 0:02:54]} 8. O-O {[%clk 0:02:35]}  c6 {[%clk 0:02:52]} 9. Bf4 {[%clk 0:02:32]}  Bb4 {[%clk 0:02:52]} 10. Rc1 {[%clk 0:02:29]}  O-O {[%clk 0:02:52]} 11. Ne5 {[%clk 0:02:24]}  Nxe5 {[%clk 0:02:45]} 12. dxe5 {[%clk 0:02:19]}  Nd7 {[%clk 0:02:26]} 13. e4 {[%clk 0:02:18]}  Bxc3 {[%clk 0:02:22]} 14. Rxc3 {[%clk 0:01:59]}  dxe4 {[%clk 0:02:18]} 15. Rc4 {[%clk 0:01:42]}  Nb6 {[%clk 0:02:16]} 16. Rd4 {[%clk 0:01:39]}  Qe7 {[%clk 0:02:14]} 17. Bxe4 {[%clk 0:01:24]}  Bxe4 {[%clk 0:02:13]} 18. Rxe4 {[%clk 0:01:25]}  Rad8 {[%clk 0:02:13]} 19. Qg4 {[%clk 0:01:17]}  Qe6 {[%clk 0:02:12]} 20. Qe2 {[%clk 0:01:11]}  Rd7 {[%clk 0:02:04]} 21. h4 {[%clk 0:01:02]}  Rfd8 {[%clk 0:02:03]} 22. h5 {[%clk 0:00:56]}  Qd5 {[%clk 0:01:52]} 23. e6 {[%clk 0:00:47]}  fxe6 {[%clk 0:01:48]} 24. Rxe6 {[%clk 0:00:48]}  Qd3 {[%clk 0:01:35]} 25. Re8+ {[%clk 0:00:44]}  Rxe8 {[%clk 0:01:19]} 26. Qxe8+ {[%clk 0:00:42]}  Kh7 {[%clk 0:01:20]} 27. Re1 {[%clk 0:00:40]}  Qf5 {[%clk 0:01:12]} 28. Re6 {[%clk 0:00:25]}  Qf7 {[%clk 0:00:54]} 29. Qxf7 {[%clk 0:00:11]}  Rxf7 {[%clk 0:00:54]} 30. Be3 {[%clk 0:00:11]}  Rd7 {[%clk 0:00:46]} 31. Kg2 {[%clk 0:00:10]}  Kg8 {[%clk 0:00:43]} 32. g4 {[%clk 0:00:10]}  Kf7 {[%clk 0:00:42]} 33. Re5 {[%clk 0:00:10]}  Nc4 {[%clk 0:00:39]} 34. Rf5+ {[%clk 0:00:09]}  Ke6 {[%clk 0:00:40]} 35. Bxa7 {[%clk 0:00:09]}  Nxb2 {[%clk 0:00:40]} 36. Rf3 {[%clk 0:00:06]}  Nd3 {[%clk 0:00:35]} 37. Re3+ {[%clk 0:00:04]}  Kf7 {[%clk 0:00:36]} 38. Bb8 {[%clk 0:00:02]}  Nb4 {[%clk 0:00:26]} 39. Kg3 {[%clk 0:00:03]}  Nd5 {[%clk 0:00:26]} 40. Rf3+ {[%clk 0:00:03]}  Ke6 {[%clk 0:00:24]} 41. Rf5 {[%clk 0:00:03]}  Rf7 {[%clk 0:00:24]} 42. Re5+ {[%clk 0:00:03]}  Kd7 {[%clk 0:00:24]} 43. f4 {[%clk 0:00:02]}  Nxf4 {[%clk 0:00:23]} 44. Rf5 {[%clk 0:00:01]}  Rxf5 {[%clk 0:00:22]} 45. gxf5 {[%clk 0:00:02]}  Nd5 {[%clk 0:00:22]} 46. Be5 {[%clk 0:00:01]}  Nf6 {[%clk 0:00:23]} 47. Kf4 {[%clk 0:00:00]}  c5 {[%clk 0:00:22]} 0-1


[Site "https://www.chess.com"]